bitfinex-derivatives/quotes_BNBF0:USTF0_20250413
["timestamp","ask_amount","ask_price","bid_price","bid_amount"]
[1744532045992,0.31012978,593.38,592.79,4.163]
[1744532047396,0.29357551,593.39,592.79,4.163]
[1744532047590,0.31012683,593.38,592.79,4.163]
[1744532048995,0.29357551,593.39,592.79,4.163]
[1744532049191,0.31013,593.38,592.79,4.163]
[1744532050397,0.31013,593.43,592.79,4.163]
[1744532050599,0.64715374,593.43,592.79,4.163]
[1744532050791,0.31013878,593.42,592.79,4.163]
[1744532051298,0.29357303,593.41,592.79,4.163]
[1744532051497,0.31013878,593.4,592.79,4.163]
[1744532052297,0.29357303,593.41,592.79,4.163]
[1744532052498,0.31013639,593.4,592.79,4.163]
[1744532053398,0.31013639,593.42,592.79,4.163]
[1744532053597,0.29357551,593.39,592.79,4.163]
[1744532053798,0.31013639,593.38,592.79,4.163]
[1744532056303,0.33705782,593.37,592.79,4.163]
[1744532056499,0.31013639,593.36,592.79,4.163]
[1744532056797,0.33706918,593.35,592.79,4.163]
[1744532057002,0.31013639,593.34,592.79,4.163]
[1744532057204,0.33708054,593.33,592.79,4.163]
[1744532057502,0.31019684,593.32,592.79,4.163]
[1744532057703,0.64728306,593.32,592.79,4.163]
[1744532058004,0.31019684,593.31,592.79,4.163]
[1744532059306,0.29358665,593.3,592.79,4.163]
[1744532059505,0.31019684,593.29,592.79,4.163]
[1744532062209,0.31016348,593.28,592.79,4.163]
[1744532062508,0.31016348,593.27,592.79,4.163]
[1744532063710,0.29358913,593.28,592.79,4.163]
[1744532063906,0.31016159,593.27,592.79,4.163]
[1744532065412,0.29358913,593.28,592.79,4.163]
[1744532065612,0.31015877,593.27,592.79,4.163]
[1744532068311,0.31015877,593.31,592.79,4.163]
[1744532068510,0.29358665,593.26,592.79,4.163]
[1744532068813,0.31015885,593.25,592.79,4.163]
[1744532070412,0.31015841,593.24,592.79,4.163]
[1744532070610,0.31015841,593.23,592.79,4.163]
[1744532070816,0.31015841,593.25,592.79,4.163]
[1744532071018,0.31015841,593.24,592.79,4.163]
[1744532071319,0.31015841,593.23,592.79,4.163]
[1744532071516,0.29358913,593.24,592.79,4.163]
[1744532071717,0.31015841,593.23,592.79,4.163]
[1744532073518,0.29358913,593.24,592.79,4.163]
[1744532073716,0.31015947,593.23,592.79,4.163]
[1744532074418,0.2935916,593.22,592.79,4.163]
[1744532074917,0.31015947,593.21,592.79,4.163]
[1744532075218,0.2935916,593.22,592.79,4.163]
[1744532075518,0.31015983,593.21,592.79,4.163]
[1744532076815,0.2935916,593.22,592.79,4.163]
[1744532077019,0.31015686,593.21,592.79,4.163]
[1744532078619,0.2935916,593.22,592.79,4.163]
[1744532078814,0.31015956,593.21,592.79,4.163]
[1744532080214,0.33708622,593.32,592.79,4.163]
[1744532080519,0.29359408,593.2,592.79,4.163]
[1744532080719,0.31016294,593.19,592.79,4.163]
[1744532080917,0.33708622,593.32,592.79,4.163]
[1744532080918,0.31016294,593.31,592.79,4.163]
[1744532081919,0.2935817,593.3,592.79,4.163]
[1744532082318,0.31016283,593.29,592.79,4.163]
[1744532083315,0.31016283,593.31,592.79,4.163]
[1744532083618,0.29358417,593.28,592.79,4.163]
[1744532083819,0.31016283,593.27,592.79,4.163]
[1744532086322,0.31016283,593.31,592.79,4.163]
[1744532086524,0.29358665,593.26,592.79,4.163]
[1744532086724,0.31016283,593.25,592.79,4.163]
[1744532092323,0.31016283,593.31,592.79,4.163]
[1744532092527,0.29358913,593.24,592.79,4.163]
[1744532092725,0.31016283,593.23,592.79,4.163]
[1744532092924,0.31016283,593.31,592.79,4.163]
[1744532093431,0.2935817,593.3,592.79,4.163]
[1744532093630,0.31016283,593.29,592.79,4.163]
[1744532095226,0.31016283,593.31,592.79,4.163]
[1744532095433,0.2935817,593.28,592.79,4.163]
[1744532095730,0.31016283,593.27,592.79,4.163]
[1744532098330,0.29358665,593.26,592.79,4.163]
[1744532098734,0.31016283,593.25,592.79,4.163]
[1744532101239,0.33708622,593.32,592.79,4.163]
[1744532101440,0.31010457,593.31,592.79,4.163]
[1744532102438,0.29355941,593.3,592.79,4.163]
[1744532102632,0.31010457,593.29,592.79,4.163]
[1744532102834,0.29355941,593.3,592.79,4.163]
[1744532103137,0.31010716,593.29,592.79,4.163]
[1744532104337,0.31010716,593.28,592.79,4.163]
[1744532104537,0.29356188,593.28,592.79,4.163]
[1744532106242,0.31010654,593.27,592.79,4.163]
[1744532109342,0.29356188,593.28,592.79,4.163]
[1744532109542,0.31011027,593.26,592.79,4.163]
[1744532109740,0.29356188,593.28,592.79,4.163]
[1744532110140,0.31010729,593.27,592.79,4.163]
[1744532110340,0.31010729,593.31,592.79,4.163]
[1744532110537,0.29355941,593.27,592.79,4.163]
[1744532110738,0.31010729,593.26,592.79,4.163]
[1744532113842,0.29355941,593.27,592.79,4.163]
[1744532119247,0.33708622,593.32,592.79,4.163]
[1744532119957,0.31008388,593.31,592.79,4.163]
[1744532120355,0.29355941,593.3,592.79,4.163]
[1744532122052,0.33708622,593.32,592.79,4.163]
[1744532122257,0.31008352,593.31,592.79,4.163]
[1744532122456,0.29355941,593.29,592.79,4.163]
[1744532123259,0.31009148,593.28,592.79,4.163]
[1744532124059,0.29355941,593.29,592.79,4.163]
[1744532124259,0.31009247,593.28,592.79,4.163]
[1744532125255,0.31009247,593.31,592.79,4.163]
[1744532125458,0.31009247,593.3,592.79,4.163]
[1744532125656,0.31009247,593.31,592.79,4.163]
[1744532126361,0.29355941,593.3,592.79,4.163]
[1744532126561,0.31009247,593.29,592.79,4.163]
[1744532127262,0.29355941,593.3,592.79,4.163]
[1744532127454,0.310093,593.29,592.79,4.163]
[1744532130465,0.29355941,593.3,592.79,4.163]
[1744532130665,0.31009266,593.29,592.79,4.163]
[1744532131559,0.31009266,593.28,592.79,4.163]
[1744532131762,0.31009266,593.31,592.79,4.163]
[1744532132062,0.31009266,593.3,592.79,4.163]
[1744532132267,0.31009266,593.31,592.79,4.163]
[1744532132465,0.60365207,593.3,592.79,4.163]
[1744532132661,0.31009266,593.29,592.79,4.163]
[1744532133767,0.31009232,593.28,592.79,4.163]
[1744532133967,0.31009232,593.29,592.79,4.163]
[1744532134167,0.31009232,593.28,592.79,4.163]
[1744532134467,0.31009232,593.27,592.79,4.163]
[1744532134668,0.31009232,593.31,592.79,4.163]
[1744532134866,0.31009232,593.3,592.79,4.163]
[1744532135062,0.31009232,593.31,592.79,4.163]
[1744532135367,0.29355941,593.29,592.79,4.163]
[1744532135662,0.31009232,593.28,592.79,4.163]
[1744532136868,0.29355941,593.29,592.79,4.163]
[1744532137067,0.31009252,593.28,592.79,4.163]
[1744532137468,0.31009252,593.31,592.79,4.163]
[1744532138368,0.29355941,593.3,592.79,4.163]
[1744532139369,0.31007005,593.29,592.79,4.163]
[1744532140268,0.31007005,593.31,592.79,4.163]
[1744532140469,0.31007005,593.3,592.79,4.163]
[1744532140669,0.33708622,593.32,592.79,4.163]
[1744532140971,0.31006145,593.31,592.79,4.163]
[1744532141268,0.60360229,593.31,592.79,4.163]
[1744532141470,0.31006145,593.3,592.79,4.163]
[1744532143372,0.31006145,593.31,592.79,4.163]
[1744532143573,0.31006145,593.3,592.79,4.163]
[1744532143772,0.31006145,593.31,592.79,4.163]
[1744532143974,0.33708622,593.32,592.79,4.163]
[1744532144173,0.31006364,593.31,592.79,4.163]
[1744532144375,0.60358096,593.31,592.79,4.163]
[1744532144576,0.31006364,593.3,592.79,4.163]
[1744532146273,0.31006364,593.52,592.79,4.163]
[1744532146472,0.29352598,593.36,592.79,4.163]
[1744532146676,0.31006364,593.35,592.79,4.163]
[1744532146975,0.31006364,593.34,592.79,4.163]
[1744532147176,1.28407166,593.53,592.79,4.163]
[1744532147177,0.31006364,593.52,592.79,4.163]
[1744532147377,0.31006364,593.33,592.79,4.163]
[1744532147677,0.31006364,593.32,592.79,4.163]
[1744532147980,0.31006364,593.31,592.79,4.163]
[1744532148178,0.31006364,593.41,592.79,4.163]
[1744532148479,0.29348637,593.42,592.79,4.163]
[1744532148773,0.31000563,593.41,592.79,4.163]
[1744532149273,0.31000563,593.8,592.79,4.163]
[1744532149478,0.29349751,593.42,592.79,4.163]
[1744532149680,0.31000563,593.41,592.79,4.163]
[1744532149878,0.31000563,593.78,592.79,4.163]
[1744532150078,0.64683638,593.77,592.79,4.163]
[1744532150281,0.33683643,593.76,592.79,4.163]
[1744532150477,0.31000457,593.75,592.79,4.163]
[1744532150676,1.28407166,593.66,592.79,4.163]
[1744532150973,0.31000457,593.65,592.79,4.163]
[1744532151179,0.31000457,593.64,592.79,4.163]
[1744532151383,0.31000457,593.63,592.79,4.163]
[1744532151675,0.31000457,593.62,592.79,4.163]
[1744532151875,0.31000457,593.65,592.79,4.163]
[1744532152080,0.31000457,593.64,592.79,4.163]
[1744532152277,0.31000457,593.63,592.79,4.163]
[1744532152688,0.31000457,593.62,592.79,4.163]
[1744532152879,0.31000457,593.61,592.79,4.163]
[1744532153080,0.31000457,593.6,592.79,4.163]
[1744532153381,0.31000457,593.59,592.79,4.163]
[1744532153680,0.31000457,593.58,592.79,4.163]
[1744532153981,0.31000457,593.57,592.79,4.163]
[1744532154181,0.31000457,593.56,592.79,4.163]
[1744532154380,0.31000457,593.55,592.79,4.163]
[1744532154581,0.31000457,593.63,592.79,4.163]
[1744532154781,0.31000457,593.62,592.79,4.163]
[1744532154982,0.31000457,593.61,592.79,4.163]
[1744532155277,0.31000457,593.6,592.79,4.163]
[1744532155481,0.31000457,593.59,592.79,4.163]
[1744532155683,0.31000457,593.58,592.79,4.163]
[1744532155879,0.31000457,593.63,592.79,4.163]
[1744532156076,0.31000457,593.62,592.79,4.163]
[1744532156278,0.31000457,593.61,592.79,4.163]
[1744532156482,0.31000457,593.6,592.79,4.163]
[1744532156985,0.31000457,593.59,592.79,4.163]
[1744532157283,0.31000457,593.58,592.79,4.163]
[1744532157486,0.31000457,593.63,592.79,4.163]
[1744532164288,0.29346781,593.64,592.79,4.163]
[1744532164484,0.30994239,593.63,592.79,4.163]
[1744532167284,0.30994239,593.73,592.79,4.163]
[1744532167488,0.29344554,593.62,592.79,4.163]
[1744532167789,0.30994239,593.61,592.79,4.163]
[1744532168086,0.30994239,593.73,592.79,4.163]
[1744532168290,0.30994239,593.6,592.79,4.163]
[1744532168487,0.30994239,593.59,592.79,4.163]
[1744532168691,0.30994239,593.73,592.79,4.163]
[1744532168990,0.30994239,593.72,592.79,4.163]
[1744532169184,0.30993315,593.71,592.79,4.163]
[1744532170386,0.29342822,593.7,592.79,4.163]
[1744532170590,0.30993315,593.69,592.79,4.163]
[1744532176396,0.30993315,593.73,592.79,4.163]
[1744532176594,0.29342327,593.68,592.79,4.163]
[1744532176798,0.30993315,593.67,592.79,4.163]
[1744532178796,0.29342327,593.68,592.79,4.163]
[1744532178999,0.30993437,593.67,592.79,4.163]
[1744532179500,0.29342575,593.66,592.79,4.163]
[1744532179801,0.30993437,593.65,592.79,4.163]
[1744532180400,0.29342575,593.66,592.79,4.163]
[1744532180598,0.30993415,593.65,592.79,4.163]
[1744532182296,0.30993415,593.73,592.79,4.163]
[1744532182502,0.29341832,593.64,592.79,4.163]
[1744532182799,0.30993415,593.63,592.79,4.163]
[1744532183000,0.30993415,593.73,592.79,4.163]
[1744532183203,0.30993415,593.72,592.79,4.163]
[1744532183399,0.33684777,593.74,592.79,4.163]
[1744532183400,0.30993415,593.71,592.79,4.163]
[1744532183597,0.30993415,593.7,592.79,4.163]
[1744532183797,0.30991303,593.69,592.79,4.163]
[1744532183995,0.30991303,593.7,592.79,4.163]
[1744532184195,0.30991303,593.69,592.79,4.163]
[1744532184398,0.30991303,593.7,592.79,4.163]
[1744532184595,0.30991303,593.69,592.79,4.163]
[1744532184795,0.30991303,593.7,592.79,4.163]
[1744532185001,0.30991303,593.69,592.79,4.163]
[1744532185201,0.30991303,593.7,592.79,4.163]
[1744532185402,0.30991303,593.68,592.79,4.163]
[1744532185601,0.30991303,593.67,592.79,4.163]
[1744532188602,0.29342203,593.68,592.79,4.163]
[1744532188796,0.3099174,593.67,592.79,4.163]
[1744532190205,0.29342203,593.68,592.79,4.163]
[1744532190505,0.30991349,593.67,592.79,4.163]
[1744532191202,0.30991349,593.66,592.79,4.163]
[1744532191399,0.30991349,593.7,592.79,4.163]
[1744532192201,0.30991349,593.72,592.79,4.163]
[1744532194209,0.30991349,593.71,592.79,4.163]
[1744532194505,0.30991349,593.73,592.79,4.163]
[1744532194710,0.30991349,593.72,592.79,4.163]
[1744532194903,0.30991349,593.73,592.79,4.163]
[1744532195107,1.62091943,593.74,592.79,4.163]
[1744532195408,0.30991349,593.73,592.79,4.163]
[1744532198213,0.30991349,593.73,592.8,0.33738191]
[1744532199710,0.30991349,593.72,592.8,0.33738191]
[1744532199913,0.30991349,594.24,592.8,0.33738191]
[1744532200113,0.64641452,594.23,592.8,0.33738191]
[1744532200314,0.64642018,594.22,592.8,0.33738191]
[1744532200511,0.64642585,594.21,592.8,0.33738191]
[1744532200814,0.64643151,594.2,592.8,0.33738191]
[1744532201014,0.30984451,594.19,592.8,0.33738191]
[1744532201209,0.64644284,594.18,592.8,0.33738191]
[1744532201413,0.30984451,594.17,592.8,0.33738191]
[1744532201613,0.33660966,594.16,592.8,1.12238191]
[1744532201811,0.30984091,594.15,592.8,1.90138191]
[1744532202112,0.33662099,594.14,592.8,3.51838191]
[1744532202510,0.30984091,594.13,592.8,5.15738191]
[1744532202712,0.33663233,594.12,592.8,5.15738191]
[1744532202910,0.30984091,594.11,592.8,5.15738191]
[1744532203117,0.33664366,594.1,592.8,5.15738191]
[1744532203415,0.30984091,594.09,592.8,5.15738191]
[1744532203616,0.64649023,594.09,592.8,5.15738191]
[1744532203816,0.30984091,594.08,592.8,5.15738191]
[1744532208421,0.30984091,594.07,592.8,5.15738191]
[1744532208621,0.30984091,594.06,592.8,5.15738191]
[1744532208822,0.30984091,594.05,592.8,5.15738191]
[1744532209023,0.30984091,594.04,592.8,5.15738191]
[1744532209221,0.30984091,594.03,592.8,5.15738191]
[1744532209417,0.30984605,594.02,592.8,5.15738191]
[1744532209621,0.30984605,594.01,592.8,5.15738191]
[1744532209824,0.30984605,594.0,592.8,5.15738191]
[1744532210023,0.30984605,593.99,592.8,5.15738191]
[1744532210225,0.30984605,593.98,592.8,5.15738191]
[1744532210424,0.30984605,593.97,592.8,5.15738191]
[1744532210620,0.30984605,594.08,592.8,5.15738191]
[1744532210825,0.30984605,594.07,592.8,5.15738191]
[1744532211122,0.30984605,594.06,592.8,5.15738191]
[1744532211323,0.30984605,594.05,592.8,5.15738191]
[1744532211520,0.30984605,594.04,592.8,5.15738191]
[1744532211721,0.30984605,594.03,592.8,5.15738191]
[1744532211924,0.30984605,594.02,592.8,5.15738191]
[1744532212126,0.30984605,594.01,592.8,5.15738191]
[1744532212326,0.30984605,594.0,592.8,5.15738191]
[1744532212523,0.30984605,593.99,592.8,5.15738191]
[1744532212727,0.30984605,593.98,592.8,5.15738191]
[1744532213026,0.30984605,593.97,592.8,5.15738191]
[1744532213226,0.30984605,593.96,592.8,5.15738191]
[1744532213526,0.30984605,593.95,592.8,5.15738191]
[1744532213727,0.30984605,593.94,592.8,5.15738191]
[1744532214026,0.30984605,593.93,592.8,5.15738191]
[1744532214227,0.30984605,593.92,592.8,5.15738191]
[1744532214428,0.33664932,594.09,592.8,5.15738191]
[1744532214429,0.30984605,593.91,592.8,5.15738191]
[1744532214723,1.28407166,594.07,592.8,5.15738191]
[1744532214929,0.30984624,594.06,592.8,5.15738191]
[1744532215128,0.30984624,594.05,592.8,5.15738191]
[1744532215428,0.30984624,594.04,592.8,5.15738191]
[1744532215629,0.30984624,594.03,592.8,5.15738191]
[1744532215823,0.30984624,594.02,592.8,5.15738191]
[1744532216028,0.30984624,594.01,592.8,5.15738191]
[1744532216229,0.30984624,594.0,592.8,5.15738191]
[1744532216431,0.30984624,593.99,592.8,5.15738191]
[1744532216630,1.28407166,593.95,592.8,5.15738191]
[1744532216826,0.30984624,593.94,592.8,5.15738191]
[1744532217029,0.30984624,593.93,592.8,5.15738191]
[1744532217227,0.30984624,593.92,592.8,5.15738191]
[1744532217425,0.30984624,593.91,592.8,5.15738191]
[1744532217630,0.30984624,593.9,592.8,5.15738191]
[1744532217830,0.30984624,593.89,592.8,5.15738191]
[1744532218030,0.30984624,593.94,592.8,5.15738191]
[1744532218329,0.30984624,593.93,592.8,5.15738191]
[1744532218627,0.30984624,593.92,592.8,5.15738191]
[1744532218831,0.30984624,593.91,592.8,5.15738191]
[1744532219032,0.30984624,593.9,592.8,5.15738191]
[1744532219234,0.30984624,593.98,592.8,5.15738191]
[1744532219528,1.28407166,593.99,592.8,5.15738191]
[1744532219529,0.29335649,593.9,592.8,5.15738191]
[1744532219735,0.30985851,593.89,592.8,5.15738191]
[1744532219937,0.30985851,593.98,592.8,5.15738191]
[1744532220127,0.30985851,593.88,592.8,5.15738191]
[1744532220332,0.30985851,593.87,592.8,5.15738191]
[1744532220531,0.30985851,593.98,592.8,5.15738191]
[1744532220726,0.30985851,593.97,592.8,5.15738191]
[1744532221031,0.30985851,593.96,592.8,5.15738191]
[1744532221227,0.30985851,593.95,592.8,5.15738191]
[1744532221431,0.30985851,593.94,592.8,5.15738191]
[1744532221635,0.30985851,593.93,592.8,5.15738191]
[1744532221828,0.30985851,593.92,592.8,5.15738191]
[1744532222029,0.30985851,593.91,592.8,5.15738191]
[1744532222329,0.30985887,593.9,592.8,5.15738191]
[1744532222532,0.30985887,593.89,592.8,5.15738191]
[1744532222729,0.30985887,593.96,592.8,5.15738191]
[1744532222935,0.30985887,593.95,592.8,5.15738191]
[1744532223134,0.30985887,593.94,592.8,5.15738191]
[1744532223334,0.30985887,593.93,592.8,5.15738191]
[1744532223535,0.30985887,593.92,592.8,5.15738191]
[1744532223730,0.30985887,593.91,592.8,5.15738191]
[1744532223933,0.30985887,593.9,592.8,5.15738191]
[1744532224136,0.30985887,593.89,592.8,5.15738191]
[1744532224337,0.30985887,593.97,592.8,5.15738191]
[1744532224537,0.30985887,593.96,592.8,5.15738191]
[1744532224837,0.30985887,593.95,592.8,5.15738191]
[1744532225039,0.30985887,593.96,592.8,5.15738191]
[1744532225233,0.30985887,593.95,592.8,5.15738191]
[1744532225433,0.60320547,593.94,592.8,5.15738191]
[1744532225636,0.30985887,593.93,592.8,5.15738191]
[1744532225836,0.30985887,593.92,592.8,5.15738191]
[1744532226038,0.30985887,593.91,592.8,5.15738191]
[1744532226239,0.30985887,593.93,592.8,5.15738191]
[1744532226538,0.30985887,593.92,592.8,5.15738191]
[1744532226740,0.30985887,593.93,592.8,5.15738191]
[1744532226938,0.30985887,593.92,592.8,5.15738191]
[1744532227139,0.30985887,593.93,592.8,5.15738191]
[1744532227439,0.30985887,593.92,592.8,5.15738191]
[1744532227635,0.30985887,593.96,592.8,5.15738191]
[1744532227940,0.30985887,593.95,592.8,5.15738191]
[1744532228234,0.30985887,593.94,592.8,5.15738191]
[1744532228438,0.30985887,593.93,592.8,5.15738191]
[1744532230341,0.30979257,593.92,592.8,5.15738191]
[1744532230542,0.30979257,594.06,592.8,5.15738191]
[1744532230841,0.30979257,594.05,592.8,5.15738191]
[1744532231041,0.30979257,594.08,592.8,5.15738191]
[1744532231437,0.29331445,594.04,592.8,5.15738191]
[1744532231642,0.30979257,594.03,592.8,5.15738191]
[1744532231843,0.29331445,594.04,592.8,5.15738191]
[1744532232039,0.30978953,594.03,592.8,5.15738191]
[1744532236048,0.30978953,594.02,592.8,5.15738191]
[1744532236243,0.30978953,594.01,592.81,0.30393075]
[1744532236443,0.30978953,594.0,592.82,0.33737053]
[1744532236647,0.29332063,594.02,592.82,0.33737053]
[1744532236846,0.30979181,594.01,592.82,0.33737053]
[1744532237047,0.30979181,594.0,592.82,0.33737053]
[1744532237243,0.30979181,593.99,592.82,0.33737053]
[1744532237449,1.59386347,593.98,592.82,0.33737053]
[1744532237649,0.30979181,593.97,592.82,0.33737053]
[1744532237847,0.30979181,593.96,592.82,0.33737053]
[1744532238048,0.30979181,593.95,592.82,0.33737053]
[1744532238348,0.30979181,593.94,592.82,0.33737053]
[1744532238545,0.30979181,593.93,592.82,0.33737053]
[1744532238749,0.30979181,593.92,592.82,0.33737053]
[1744532238950,0.30979181,593.97,592.83,0.709]
[1744532239149,0.30979181,593.96,592.84,0.33735915]
[1744532239345,0.30979181,593.95,592.84,0.33735915]
[1744532239550,0.30979181,593.94,592.84,0.33735915]
[1744532239749,0.30979181,593.93,592.85,0.576]
[1744532239947,0.30979181,593.92,592.86,0.33734777]
[1744532240150,0.30979181,593.97,592.86,0.33734777]
[1744532240345,0.30979181,593.96,592.87,0.737]
[1744532240546,0.30979181,593.97,592.87,1.598]
[1744532240749,0.30979181,593.96,592.88,0.568]
[1744532240948,0.30979181,593.97,592.89,0.3373307]
[1744532241250,0.30979181,593.96,592.89,0.3373307]
[1744532241446,0.30979181,593.97,592.89,0.3373307]
[1744532242853,0.30979181,594.05,592.89,0.3373307]
[1744532243051,0.30979181,594.04,592.89,0.3373307]
[1744532243352,0.30979181,594.03,592.89,0.3373307]
[1744532243551,0.29329468,594.04,592.89,0.3373307]
[1744532243749,0.30979181,594.03,592.89,0.3373307]
[1744532244552,0.29329468,594.04,592.89,0.3373307]
[1744532244752,0.30978057,594.02,592.89,0.3373307]
[1744532244955,0.30978057,594.01,592.89,0.3373307]
[1744532245150,0.30978057,594.0,592.89,0.3373307]
[1744532245350,1.62072098,594.09,592.89,0.3373307]
[1744532245351,0.30978057,593.99,592.89,0.3373307]
[1744532245551,0.29330086,594.0,592.89,0.3373307]
[1744532245751,0.30978057,593.99,592.89,0.3373307]
[1744532246451,0.30978057,593.98,592.89,0.3373307]
[1744532246652,0.30978057,593.97,592.89,0.3373307]
[1744532246952,0.30978057,593.96,592.89,0.3373307]
[1744532247154,0.30978057,593.95,592.89,0.3373307]
[1744532247455,0.30978057,593.94,592.89,0.3373307]
[1744532247651,0.30978057,593.93,592.89,0.3373307]
[1744532247848,0.30978057,593.99,592.89,0.3373307]
[1744532248049,0.30978057,593.98,592.89,0.3373307]
[1744532248255,0.30978057,593.97,592.89,0.3373307]
[1744532248456,0.30978057,593.96,592.89,0.3373307]
[1744532248656,0.2933058,593.97,592.89,0.3373307]
[1744532248856,0.30978057,593.96,592.89,0.3373307]
[1744532249558,0.30978057,593.95,592.89,0.3373307]
[1744532249757,0.30978057,593.96,592.89,0.3373307]
[1744532249960,0.30978057,593.95,592.89,0.3373307]
[1744532250158,0.30978057,593.94,592.89,0.3373307]
[1744532250554,0.30978057,593.96,592.89,0.3373307]
[1744532250757,0.30978057,593.93,592.89,0.3373307]
[1744532251059,0.30978057,593.92,592.89,0.3373307]
[1744532251260,0.30978057,593.96,592.89,0.3373307]
[1744532251560,0.29330209,593.91,592.89,0.3373307]
[1744532251754,0.30978057,593.9,592.89,0.3373307]
[1744532252456,0.29330209,593.91,592.89,0.3373307]
[1744532252660,0.30977837,593.9,592.89,0.3373307]
[1744532254360,0.30977837,594.08,592.89,0.3373307]
[1744532254556,0.29330951,593.89,592.89,0.3373307]
[1744532254760,0.30977837,593.88,592.89,0.3373307]
[1744532254955,0.30977837,594.08,592.89,0.3373307]
[1744532255256,0.30977837,594.07,592.89,0.3373307]
[1744532255455,0.30977837,594.06,592.89,0.3373307]
[1744532255653,0.30977837,594.05,592.89,0.3373307]
[1744532255858,0.29328726,594.07,592.89,0.3373307]
[1744532255859,0.30977837,594.04,592.89,0.3373307]
[1744532256161,0.30977837,594.06,592.9,0.696]
[1744532256462,0.30977837,594.05,592.91,0.33731932]
[1744532256653,0.30977837,594.04,592.91,0.33731932]
[1744532256856,0.30977837,594.06,592.91,0.33731932]
[1744532257060,0.30977837,594.05,592.91,0.33731932]
[1744532257361,0.30977837,594.04,592.91,0.33731932]
[1744532257557,0.30977837,594.03,592.91,0.33731932]
[1744532258861,0.29328726,594.04,592.91,0.33731932]
[1744532259064,0.30976855,594.03,592.91,1.24631932]
[1744532259361,0.29328726,594.04,592.91,1.24631932]
[1744532259656,0.30978614,594.03,592.91,1.24631932]
[1744532260456,0.30978614,594.07,592.91,1.24631932]
[1744532260763,0.29328973,594.02,592.91,1.24631932]
[1744532260957,0.30978614,594.01,592.91,1.24631932]
[1744532261563,0.30978614,594.0,592.91,1.24631932]
[1744532261764,0.30978614,593.99,592.91,2.11531932]
[1744532261966,0.30978614,593.98,592.91,2.11531932]
[1744532262266,0.30976898,593.97,592.91,2.11531932]
[1744532262568,0.30976898,593.96,592.91,2.11531932]
[1744532262769,0.30976898,594.01,592.91,2.11531932]
[1744532262969,0.30976898,594.0,592.91,2.11531932]
[1744532263168,0.30976898,593.99,592.91,2.11531932]
[1744532263369,0.30976898,594.03,592.91,2.11531932]
[1744532263569,0.29329221,593.99,592.91,2.11531932]
[1744532263764,0.30976869,593.98,592.91,2.11531932]
[1744532267667,0.30976869,593.98,592.91,2.67931932]
[1744532268473,0.29329221,593.99,592.91,2.67931932]
[1744532268671,0.30977366,593.98,592.91,2.67931932]
[1744532270070,0.29329221,593.99,592.91,2.67931932]
[1744532270271,0.30977514,593.98,592.91,2.67931932]
[1744532271577,0.29329221,593.99,592.91,2.67931932]
[1744532271778,0.30977813,593.98,592.91,2.67931932]
[1744532272376,0.30977813,594.08,592.91,2.67931932]
[1744532272774,0.30977813,594.08,592.91,3.34931932]
[1744532273278,0.30977813,594.07,592.91,3.34931932]
[1744532273476,0.30977813,594.06,592.91,3.34931932]
[1744532273677,0.30977813,594.05,592.91,3.34931932]
[1744532273878,0.30977813,594.04,592.91,3.34931932]
[1744532274077,0.30977813,594.03,592.91,3.34931932]
[1744532274274,0.30977813,594.02,592.91,3.34931932]
[1744532274476,0.30977813,594.01,592.91,3.34931932]
[1744532274673,0.30977813,594.0,592.91,3.34931932]
[1744532274873,0.30977813,593.99,592.91,3.34931932]
[1744532275177,1.28407166,593.91,592.91,3.34931932]
[1744532275477,0.30977813,593.9,592.91,3.34931932]
[1744532275678,0.60308393,593.9,592.91,3.34931932]
[1744532275881,0.30977813,593.89,592.91,3.34931932]
[1744532277980,1.57737746,593.9,592.91,3.34931932]
[1744532278180,0.30977884,593.89,592.91,3.34931932]
[1744532278582,0.60308588,593.89,592.91,3.34931932]
[1744532278775,0.30977884,593.88,592.91,3.34931932]
[1744532279581,0.29330704,593.89,592.91,3.34931932]
[1744532279882,0.30978171,593.88,592.91,3.34931932]
[1744532281378,0.30978171,593.95,592.91,3.34931932]
[1744532281581,0.29332558,593.87,592.91,3.34931932]
[1744532281780,0.30978171,593.86,592.91,3.34931932]
[1744532282181,0.30978171,593.98,592.91,3.34931932]
[1744532282486,0.29331322,593.85,592.91,3.34931932]
[1744532282686,0.30978171,593.84,592.91,3.34931932]
[1744532283087,0.29331445,593.84,592.91,3.34931932]